Cogmind - Beta 14 @@@ ROGUE MODE // 2024.09.02 @ 16:36:08 Player: THN-L0C Result: Destroyed by as-72328 with Assembled P-torch Performance ------------- Evolutions (4) 2000 Regions Visited (15) 3000 Robots Destroyed (171) 855 Value Destroyed (5546) 5546 Prototype IDs (38) 760 Alien Tech Used (0) 0 Bonus (1234) 1234 TOTAL SCORE: 13395 Bonus ------- Follower Combat Kills 368 Aligned with FarCom 300 Met Imprinter 300 Triggered Deep Caves Wall 500 Exposed GOLEM Chamber 500 Friendly Fire -734 Cogmind --------- Core Integrity 0/850 Matter 180/300 Energy 1035/1100 System Corruption 18% Temperature Cool (20) Movement Walking (210) Ox2 Location -6/Deep Caves Parts ------- > --- POWER (2) -------- Assembled Flux Generator > --- PROPULSION (2) --- Assembled Alloy Leg Assembled Alloy Leg > --- UTILITY (8) ------ Assembled Nanovents High-capacity Storage Unit Assembled Biocell Array Makeshift Weapon Shielding GOLEM Unit Phasing AFG > --- WEAPON (3) ------- AWS/Thermal Assembled Focal Cannon > --- INVENTORY (20) --- Makeshift Power Source Potential Leg Potential Leg Makeshift Microdissipator Network Matter Compressor (9) Experimental Sensor Array Transmission Jammer Heart of Steel Proton Cannon Bore Cannon Powered Hammer Makeshift Hammer Power Maul Peak State ------------ > --- POWER ------------ Assembled Flux Generator > --- PROPULSION ------- Assembled Alloy Leg Assembled Alloy Leg > --- UTILITY ---------- Assembled Nanovents Assembled Nanovents High-capacity Storage Unit Assembled Biocell Array Assembled Alloy Armor GOLEM Unit Phasing AFG > --- WEAPON ----------- AWS/Thermal Assembled Focal Cannon > --- INVENTORY -------- Makeshift Power Source Potential Leg Potential Leg Makeshift Microdissipator Network Matter Compressor Experimental Sensor Array Transmission Jammer Makeshift Weapon Shielding Heart of Steel Proton Cannon Bore Cannon Powered Hammer Makeshift Hammer Power Maul [Rating: 135] Favorites ----------- Power Antimatter Reactor Engine Improved Deuterium Engine Power Core Fission Core Reactor Antimatter Reactor Propulsion Armored Huge Wheel Treads Light Treads Leg Potential Leg Wheel Armored Huge Wheel Flight Unit Makeshift Flight Unit Utility Core Analyzer Device Improved Terrain Scanner Storage Large Storage Unit Processor Core Analyzer Protection Improved Light Armor Plating Weapon Flak Gun Energy Gun Beamcaster Energy Cannon Assembled Focal Cannon Ballistic Gun Flak Gun Ballistic Cannon Antimatter Cannon Launcher Mini Grenade Launcher Impact Weapon Great Maul Slashing Weapon Power Sword Piercing Weapon CR-A16's Pointy Stick Build | -11 -10 -10 -9 -9 -9 -8 -8 -7 -7 -7 -6 -6 -6 -6 -6 ------- Run | Yrd Mat Min Mat Min Exi Min Mat Fac Was Fac Fac Low Low Zio Dee Slots Evolved 8 | . . . 2 . . . 2 2 . . 2 . . . . Power 1 | . . . . . . . . 1 . . . . . . . Propulsion . | . . . . . . . . . . . . . . . . Utility 6 | . . . 2 . . . 1 1 . . 2 . . . . Weapon 1 | . . . . . . . 1 . . . . . . . . Parts Attached 223 | 8 9 8 33 3 . 1 30 15 3 10 24 6 2 58 13 Power 38 | 1 2 3 3 . . . 6 4 2 . 6 . . 10 1 Engine 22 | 1 2 3 3 . . . 2 4 . . 3 . . 3 1 Core 13 | . . . . . . . 4 . . . 3 . . 6 . Reactor 3 | . . . . . . . . . 2 . . . . 1 . Propulsion 27 | 2 . 3 5 1 . . 4 2 . . 1 . . 9 . Treads 15 | 2 . 3 5 1 . . 1 . . . . . . 3 . Leg 7 | . . . . . . . 3 . . . . . . 4 . Wheel 4 | . . . . . . . . 2 . . 1 . . 1 . Hover . | . . . . . . . . . . . . . . . . Flight 1 | . . . . . . . . . . . . . . 1 . Utility 83 | 2 2 . 10 . . 1 11 5 1 8 11 4 1 21 6 Device 23 | 1 . . 2 . . . 4 . . 1 2 2 . 7 4 Storage 9 | 1 1 . 1 . . . . 1 . 2 2 . . 1 . Processor 14 | . . . 1 . . . 3 2 . 1 2 . . 5 . Hackware . | . . . . . . . . . . . . . . . . Protection 37 | . 1 . 6 . . 1 4 2 1 4 5 2 1 8 2 Artifact . | . . . . . . . . . . . . . . . . Weapon 75 | 3 5 2 15 2 . . 9 4 . 2 6 2 1 18 6 Energy Gun 2 | . . . . . . . . . . . . . . 1 1 Energy Cannon . | . . . . . . . . . . . . . . . . Ballistic Gun 35 | 3 4 2 12 1 . . 4 2 . 2 4 1 . . . Ballistic Cannon 11 | . . . . . . . 2 1 . . 2 1 . 5 . Launcher 10 | . 1 . 2 1 . . 2 . . . . . 1 1 2 Special Weapon . | . . . . . . . . . . . . . . . . Impact Weapon 7 | . . . . . . . . 1 . . . . . 3 3 Slashing Weapon 6 | . . . 1 . . . 1 . . . . . . 4 . Piercing Weapon 4 | . . . . . . . . . . . . . . 4 . Special Melee Weapon . | . . . . . . . . . . . . . . . . Unidentified Prototypes 5 | . . . 2 . . . . . . . 2 1 . . . Parts Lost 57 | . 1 4 3 . . 1 9 2 . . 2 2 . 21 12 Power 11 | . . 1 . . . . . 1 . . 1 . . 6 2 Propulsion 6 | . . 1 . . . . 3 . . . . . . 2 . Utility 30 | . 1 . 2 . . 1 6 1 . . 1 1 . 10 7 Weapon 10 | . . 2 1 . . . . . . . . 1 . 3 3 Highest Loss Streak 7 | . 1 2 2 . . 1 2 2 . . 1 2 . 4 7 To Critical Strikes . | . . . . . . . . . . . . . . . . Average Slot Usage (%) 88 | . 99 90 99 100 100 100 84 87 92 92 92 91 93 81 86 Engine 5 | . 14 13 11 11 11 11 3 13 10 7 1 . . 3 2 Core 3 | . . . . . . . 5 . . . 4 6 6 4 3 Reactor 2 | . . . . . . . . . 4 7 6 6 6 2 2 Treads 7 | . 28 19 22 22 22 22 7 . . . . . . 5 . Leg 2 | . . . . . . . 6 2 . . . . . 2 12 Wheel 2 | . . . . . . . . 6 7 7 6 6 6 2 . Device 7 | . 8 . 12 11 11 7 12 . . 1 5 10 13 7 11 Storage 7 | . 14 14 11 11 11 11 9 7 7 7 6 6 6 5 8 Processor 16 | . . . 3 . . . 14 24 24 19 19 20 20 23 14 Protection 13 | . 5 14 16 22 22 25 6 13 13 16 21 15 13 10 13 Ballistic Gun 9 | . 27 27 17 14 22 22 9 6 15 15 11 13 13 . . Ballistic Cannon 3 | . . . . . . . 7 4 . . 5 4 . 5 . Impact Weapon 1 | . . . . . . . . 5 7 7 1 . . . 8 Peak Build Rating 135 | 7 11 10 20 21 23 23 40 53 56 57 75 77 77 77 135 Average Rating 52 | 5 9 7 17 19 21 22 33 47 54 55 72 74 74 65 88 On Entrance 37 | . 7 10 9 18 21 23 21 35 53 56 57 65 77 75 73 Naked Turns . | . . . . . . . . . . . . . . . . Heaviest Build 147 | 13 32 30 43 44 43 45 49 55 63 74 147 137 124 124 137 Greatest Support 60 | 40 40 40 40 43 43 43 43 28 28 28 28 28 28 60 60 Greatest Overweight (x) 14 | . . 1 1 1 . 1 14 3 2 2 5 4 4 4 3 Average Overweight (x) 2 | . . . . . . . 2 1 1 2 4 4 4 1 . Largest Inventory Capacity 25 | 8 15 15 15 15 15 15 15 15 15 25 25 25 25 25 20 Average Capacity 18 | 7 13 15 15 15 15 15 15 15 15 15 24 25 25 19 20 Most Carried 25 | 2 10 13 15 15 15 15 15 15 15 15 25 25 25 25 20 Average Carried 17 | . 8 9 14 14 14 14 14 14 15 14 23 23 24 18 18 Final Capacity 25 | 8 15 15 15 15 15 15 15 15 15 15 25 25 25 20 20 Final Carried 25 | 2 9 13 15 15 15 14 15 15 15 15 25 25 25 19 15 Class Distribution -------------------- 43% | Mutant 14% | Scavenger-Mutant 10% | Tank 10% | Derelict-Mutant 10% | Gunner 7% | Skirmisher Dominant Class ---------------- Mutant | -10/Materials Mutant | -10/Mines Scavenger-Mutant | -9/Materials Mutant | -9/Mines Mutant | -9/Exiles Skirmisher | -8/Mines Skirmisher | -8/Materials Mutant | -7/Factory Mutant | -7/Waste Mutant | -7/Factory Tank | -6/Factory Gunner | -6/Lower Caves Gunner | -6/Lower Caves Mutant | -6/Zion Scavenger-Mutant | -6/Deep Caves Resources | -11 -10 -10 -9 -9 -9 -8 -8 -7 -7 -7 -6 -6 -6 -6 -6 ----------- Run | Yrd Mat Min Mat Min Exi Min Mat Fac Was Fac Fac Low Low Zio Dee Matter Collected 6924 | 310 253 188 551 148 . 43 1049 204 194 344 756 404 143 1902 435 Remotely . | . . . . . . . . . . . . . . . . Salvage Created 5665 | 118 516 123 1008 133 . 98 896 226 . 112 567 167 85 878 738 Parts 352 | 10 31 13 60 14 . 7 53 6 . 10 37 5 13 91 2 Haulers Intercepted 4 | . . . 3 . . . . . . . 1 . . . . Recyclers Shooed 3 | 1 . . . 1 . . . . . . 1 . . . . Parts Field Recycled . | . . . . . . . . . . . . . . . . Retrieved Matter . | . . . . . . . . . . . . . . . . Parts Self-Destructed 18 | . . . . . . . . . . . . 5 8 5 . Prevented . | . . . . . . . . . . . . . . . . Kills | -11 -10 -10 -9 -9 -9 -8 -8 -7 -7 -7 -6 -6 -6 -6 -6 ------- Run | Yrd Mat Min Mat Min Exi Min Mat Fac Was Fac Fac Low Low Zio Dee Combat Hostiles Destroyed 162 | . 12 9 22 6 . 2 31 8 . 3 11 3 9 8 38 Melee 5 | . . . 2 . . . . 3 . . . . . . . Guns 59 | . 7 8 15 4 . 2 6 4 . 3 3 3 1 1 2 Cannons 36 | . . . . . . . 18 . . . 8 . . 7 3 AOE 59 | . 5 1 5 2 . . 7 . . . . . 8 . 31 Classes Destroyed 21 | 2 5 . 4 . . . 3 1 . . . . . 4 2 Worker 4 | . 1 . 1 . . 1 . . . . 1 . . . . Builder 7 | . . . 2 1 . . . 3 . . 1 . . . . Tunneler 3 | 2 . . . . . . 1 . . . . . . . . Hauler 4 | . . . 3 . . . . . . . 1 . . . . Recycler 2 | 1 . . 1 . . . . . . . . . . . . Operator 1 | . . . . . . . 1 . . . . . . . . Watcher 3 | . 1 . 1 . . . . . . . 1 . . . . Swarmer 42 | . 3 9 3 4 . . 7 7 . . . . 9 . . Grunt 45 | . 8 . 11 2 . 2 16 . . . 4 2 . . . Brawler 1 | . . . . . . . 1 . . . . . . . . Duelist 3 | . . . 3 . . . . . . . . . . . . Sentry 13 | . . . 5 . . . 6 . . . 1 1 . . . Hunter 4 | . . . . . . . 1 . . 1 2 . . . . Programmer 6 | . . . . . . . . 1 . 1 4 . . . . Subdweller 1 | . 1 . . . . . . . . . . . . . . Explorer 1 | . . . . . . . . . . . . . . 1 . Zionite 45 | . . . . . . . . . . . . . . 45 . Z-Technician 5 | . . . . . . . . . . . . . . . 5 Tinkerer 4 | . . . . . . . . . . . . . . 4 . Assembled 35 | . . . . . . . . . . . . . . . 35 Golem 3 | . . . . . . . . . . . . . . . 3 Thug 2 | . . . . . . . . . . 1 . . . 1 . Butcher 1 | . . . . . . . . . . . . . . 1 . Mutant 5 | . . . . . . . . . . . . . . 5 . Best Kill Streak 33 | 3 5 5 8 2 . 3 4 4 . 2 2 3 3 6 33 Combat Bots Only 33 | . 5 5 5 2 . 2 4 4 . 2 2 3 3 4 33 Max Kills in Single Turn 7 | 1 3 2 4 2 . 1 4 2 . 1 1 1 2 1 7 Gunslinging 1 | . . . . . . . . 1 . . . . . . . Exploded 7 | . 3 1 2 2 . . 4 . . . . . 2 . 7 Melee 1 | . . . 1 . . . . 1 . . . . . . . Uniques/NPCs Destroyed 1 | . . . . . . . . . . . . . . 1 . Imprinter (-6/Zion) Combat | -11 -10 -10 -9 -9 -9 -8 -8 -7 -7 -7 -6 -6 -6 -6 -6 -------- Run | Yrd Mat Min Mat Min Exi Min Mat Fac Was Fac Fac Low Low Zio Dee Hostile Shots Fired 1261 | . 50 46 99 24 . 16 149 69 . 28 93 17 28 385 257 Missed 389 | . 13 8 18 7 . 7 33 24 . 8 30 7 10 137 87 Damage Taken 13762 | . 484 333 1204 146 . 173 1653 667 . 816 1349 125 287 3318 3207 Core 1569 | . 88 43 102 37 . . 136 59 . 248 54 22 29 281 470 Absorbed by Shields 323 | . . . . . . . . . . . 306 17 . . . Redirected to Shielding 249 | . 3 34 17 . . . 103 . . 76 3 . . . 13 Ignored by Resistances 794 | . . . . . . . . . . . . . . 451 343 Regen/Repaired (Parts) 246 | . . . . . . . 246 . . . . . . . . Core Remaining (%) 68 | 100 . 47 . . . 65 75 . . 56 . . . . . Volleys Fired 497 | 5 31 24 64 12 . 13 83 7 . 9 42 5 11 165 26 Largest 3 | 2 2 2 2 2 . 2 3 2 . 2 3 3 2 2 2 Hottest 111 | 40 46 46 53 46 . 46 88 56 . 56 100 88 58 97 111 Shots Fired 853 | 10 58 42 117 20 . 26 142 13 . 18 103 13 15 234 42 Gun 496 | 10 54 42 107 17 . 26 73 12 . 18 64 12 8 38 15 Cannon 310 | . . . . . . . 64 1 . . 39 1 . 196 9 Launcher 47 | . 4 . 10 3 . . 5 . . . . . 7 . 18 Special . | . . . . . . . . . . . . . . . . Kinetic 744 | 10 54 42 107 17 . 26 137 13 . 18 103 13 8 196 . Thermal 62 | . . . . . . . . . . . . . . 38 24 Explosive 43 | . . . 10 3 . . 5 . . . . . 7 . 18 Electromagnetic 4 | . 4 . . . . . . . . . . . . . . Robot Hit Streak 23 | 6 16 3 23 9 . 8 19 4 . 5 8 14 3 14 12 Robot Miss Streak 14 | 1 3 5 3 4 . 2 8 5 . 7 4 2 14 5 5 Penetration Max 1 | . . . . . . . . . . . 1 . . 1 . Secondary Targets 5 | . . 1 . . . 1 . 2 . 1 . . . . . Max Gunslinging Chain 1 | . . 1 . . . 1 . 1 . 1 . . . . . Autonomous 12 | . . . . . . . . . . . . . . . 12 Shots Hit Robots 553 | 8 40 15 90 9 . 18 96 22 . 17 53 9 4 142 30 Core Hits 408 | 4 19 9 48 8 . 8 83 18 . 15 27 12 13 65 79 Critical Kills 20 | . . . . . . . . . . . 1 . . 19 . Critical Parts Destroyed 23 | . . . 1 . . . . 1 . . . . . 17 4 Critical Strikes 61 | . . . 1 . . . 8 1 . . 4 . . 42 5 Burn 4 | . . . . . . . . . . . . . . 4 . Destroy 38 | . . . 1 . . . . . . . 1 . . 36 . Blast 13 | . . . . . . . 8 . . . 3 . . 2 . Smash 6 | . . . . . . . . 1 . . . . . . 5 Melee Attacks 103 | . . . 11 . . . 3 38 . 1 1 . . 35 14 Impact 84 | . . . . . . . . 38 . 1 1 . . 30 14 Slashing 17 | . . . 11 . . . 3 . . . . . . 3 . Piercing 2 | . . . . . . . . . . . . . . 2 . Sneak Attacks 5 | . . . 1 . . . . 3 . . . . . 1 . Combat Hostiles . | . . . . . . . . . . . . . . . . Follow-up Attacks . | . . . . . . . . . . . . . . . . Damage Inflicted 20518 | 100 885 253 1984 372 . 275 3705 798 . 314 1535 221 841 3451 5784 Guns 5621 | 100 565 225 1113 143 . 263 939 173 . 306 726 210 31 618 209 Cannons 6195 | . . . . . . . 2390 . . . 659 . . 2755 391 Explosions 6890 | . 319 20 690 229 . . 358 . . . 146 . 810 . 4318 Melee 1724 | . . . 179 . . . . 620 . . . . . 78 847 Ramming 88 | . 1 8 2 . . 12 18 5 . 8 4 11 . . 19 Kinetic 10598 | 100 565 225 1113 143 . 263 3329 173 . 306 1385 210 31 2755 . Thermal 3158 | . 64 20 . . . . . . . . 146 . . 618 2310 Explosive 4695 | . . . 690 229 . . 358 . . . . . 810 . 2608 Electromagnetic 255 | . 255 . . . . . . . . . . . . . . Impact 1545 | . . . . . . . . 620 . . . . . 78 847 Slashing 179 | . . . 179 . . . . . . . . . . . . Piercing . | . . . . . . . . . . . . . . . . Highest Corruption 18 | . . . . . . . . 1 1 2 2 2 2 14 18 Average Corruption 5 | . . . . . . . . 1 1 1 1 2 2 6 14 Corruption Purged 2 | . . . . . . . . . . 2 . . . . . Corruption Blocked . | . . . . . . . . . . . . . . . . Effects 242 | . . . . . . . . 2 1 9 46 6 18 82 78 Message Errors 68 | . . . . . . . . . . 4 8 . 13 21 22 Matter Fused 48 | . . . . . . . . . . 1 10 2 3 13 19 Heat Flow Errors 27 | . . . . . . . . 1 . 2 8 . . 11 5 Energy Discharges 23 | . . . . . . . . 1 . 1 5 1 . 4 11 Parts Rejected 5 | . . . . . . . . . . . 1 . . 3 1 Parts Fused 3 | . . . . . . . . . . . 2 . 1 . . Data Loss (minor) 31 | . . . . . . . . . . 1 5 1 . 12 12 Data Loss (major) 15 | . . . . . . . . . 1 . 4 1 1 4 4 Misfires 8 | . . . . . . . . . . . 2 1 . 4 1 Alerts 6 | . . . . . . . . . . . 1 . . 3 2 Misdirections 2 | . . . . . . . . . . . . . . 1 1 Weapon Failures 6 | . . . . . . . . . . . . . . 6 . Overload Shots . | . . . . . . . . . . . . . . . . Overflow Damage 1546 | . 7 . 16 9 . . 59 329 . . 26 . 55 63 982 Projectiles 129 | . . . . . . . 40 . . . 26 . . 63 . Explosions 572 | . 7 . . 9 . . 19 . . . . . 55 . 482 Melee 845 | . . . 16 . . . . 329 . . . . . . 500 Knockbacks 39 | . . . . . . . 10 4 . . 5 . . 15 5 Impact 10 | . . . . . . . . 4 . . 1 . . . 5 Kinetic 28 | . . . . . . . 9 . . . 4 . . 15 . Secondary 1 | . . . . . . . 1 . . . . . . . . Self-Inflicted Damage 335 | . . 23 23 2 . . . 2 . 4 99 5 32 . 145 Shots 10 | . . 1 1 1 . . . . . . 1 . 2 . 4 Rammed 10 | . 1 1 1 1 . 2 . 1 . 1 1 1 . . . Targets Rammed 18 | . 1 1 1 1 . 2 4 2 . 1 1 1 . . 3 Kicked 8 | . . . . . . . 4 1 . . . . . . 3 Crushed . | . . . . . . . . . . . . . . . . Highest Temperature 355 | . 7 7 31 28 . 212 279 186 . 115 355 182 18 329 200 Average Temperature 82 | . 3 4 9 10 . 102 67 82 . 28 100 85 9 100 87 Received Heat Transfer 2373 | . 156 . 390 6 . 81 792 . . 96 130 32 . 456 234 Effects 16 | . . . . . . . 1 . . . 8 . . 7 . Energy Bleed 2 | . . . . . . . 1 . . . . . . 1 . Interference 13 | . . . . . . . . . . . 8 . . 5 . Damage (minor) 1 | . . . . . . . . . . . . . . 1 . Siege Activations . | . . . . . . . . . . . . . . . . Robots Corrupted 7 | . . . . . . . . 4 . . . . . . 3 Combat Hostiles 4 | . . . . . . . . 1 . . . . . . 3 Parts Fried 7 | . . . . . . . . 7 . . . . . . . Impact Corruptions 26 | . . . . . . . . 13 . . . . . . 13 Robots Melted . | . . . . . . . . . . . . . . . . Combat Hostiles . | . . . . . . . . . . . . . . . . Parts Melted 6 | . 1 . . . . . . . . . . . . 5 . Heat Transferred 2028 | . 50 50 . . . . . . . . 100 . . 1369 459 Parts Sabotaged . | . . . . . . . . . . . . . . . . Parts Stolen . | . . . . . . . . . . . . . . . . Parts Stripped . | . . . . . . . . . . . . . . . . Power Chain Reactions 1 | . 1 . . . . . . . . . . . . . . Alert | -11 -10 -10 -9 -9 -9 -8 -8 -7 -7 -7 -6 -6 -6 -6 -6 ------- Run | Yrd Mat Min Mat Min Exi Min Mat Fac Was Fac Fac Low Low Zio Dee Peak Influence 418 | 15 208 202 332 251 . 35 418 194 66 279 328 . . . . Initial 177 | . 9 7 . 129 . . 13 177 66 46 60 . . . . Average 108 | 5 99 61 148 152 . 10 138 111 66 109 86 . . . . Maximum Alert Level 2 | . 1 1 1 1 . . 2 . . 1 1 . . . . Low Security (%) 79 | 100 80 76 55 71 . 100 78 100 100 80 83 . . . . Level 1 20 | . 19 23 44 28 . . 19 . . 19 16 . . . . Level 2 . | . . . . . . . 1 . . . . . . . . Level 3 . | . . . . . . . . . . . . . . . . Level 4 . | . . . . . . . . . . . . . . . . Level 5 . | . . . . . . . . . . . . . . . . High Security . | . . . . . . . . . . . . . . . . Max Security . | . . . . . . . . . . . . . . . . Squads Dispatched 24 | . 4 . 3 1 . . 4 1 . 4 7 . . . . Investigation 8 | . 3 . 1 . . . 1 . . . 3 . . . . Extermination 5 | . . . . . . . . 1 . 1 3 . . . . Reinforcement 10 | . 1 . 2 1 . . 3 . . 2 1 . . . . Assault . | . . . . . . . . . . . . . . . . Garrison 1 | . . . . . . . . . . 1 . . . . . Intercept . | . . . . . . . . . . . . . . . . Searches Triggered . | . . . . . . . . . . . . . . . . Construction Impeded 4 | . . . 1 1 . . . . . 1 1 . . . . Haulers Reinforced . | . . . . . . . . . . . . . . . . Active Scanning Responses . | . . . . . . . . . . . . . . . . Cargo Convoy Interrupts 1 | . . . . . . . . 1 . . . . . . . Stealth | -11 -10 -10 -9 -9 -9 -8 -8 -7 -7 -7 -6 -6 -6 -6 -6 --------- Run | Yrd Mat Min Mat Min Exi Min Mat Fac Was Fac Fac Low Low Zio Dee Distress Signals 12 | . 1 . 3 . . . 4 . . 2 2 . . . . Communications Jammed . | . . . . . . . . . . . . . . . . Distress Signals . | . . . . . . . . . . . . . . . . Times Spotted 312 | . 18 10 42 8 . 3 51 15 . 21 25 4 9 54 52 Peak Tracking Total 37 | . 5 3 7 3 . 2 5 6 . 4 4 3 3 4 37 Tactical Retreats 9 | . . . . 2 . . 5 2 . . . . . . . Traps | -11 -10 -10 -9 -9 -9 -8 -8 -7 -7 -7 -6 -6 -6 -6 -6 ------- Run | Yrd Mat Min Mat Min Exi Min Mat Fac Was Fac Fac Low Low Zio Dee Traps Triggered 9 | . 1 . . . . . . 1 . 3 4 . . . . Indirectly . | . . . . . . . . . . . . . . . . Trap Hack Attempts . | . . . . . . . . . . . . . . . . Triggered . | . . . . . . . . . . . . . . . . Disarmed . | . . . . . . . . . . . . . . . . Reprogrammed . | . . . . . . . . . . . . . . . . Reused . | . . . . . . . . . . . . . . . . Traps Extracted . | . . . . . . . . . . . . . . . . Installed . | . . . . . . . . . . . . . . . . Triggered 2 | . . . . . . . . 2 . . . . . . . Machines | -11 -10 -10 -9 -9 -9 -8 -8 -7 -7 -7 -6 -6 -6 -6 -6 ---------- Run | Yrd Mat Min Mat Min Exi Min Mat Fac Was Fac Fac Low Low Zio Dee Machines Disabled 26 | . . 1 . . . . 2 . . 4 11 . . 4 4 Max in Single Turn 5 | . . 1 . . . . 1 . . . 5 . . 1 2 Garrison Access 3 | . . . . . . . . . . 2 1 . . . . Machines Repaired . | . . . . . . . . . . . . . . . . Machines Dismantled . | . . . . . . . . . . . . . . . . Machines Sabotaged . | . . . . . . . . . . . . . . . . Overloaded Fab Kills . | . . . . . . . . . . . . . . . . Hacking | -11 -10 -10 -9 -9 -9 -8 -8 -7 -7 -7 -6 -6 -6 -6 -6 --------- Run | Yrd Mat Min Mat Min Exi Min Mat Fac Was Fac Fac Low Low Zio Dee Machines Accessed 56 | . 7 . 8 . 1 . 8 3 . 11 17 . 1 . . Terminals 41 | . 5 . 7 . . . 7 3 . 9 10 . . . . Fabricators 1 | . . . . . . . . . . . 1 . . . . Repair Stations 1 | . . . . . . . 1 . . . . . . . . Recycling Units 5 | . 2 . 1 . . . . . . . 2 . . . . Scanalyzers 1 | . . . . . . . . . . . 1 . . . . Garrison Access 5 | . . . . . . . . . . 2 3 . . . . Total Hacks 132 | . 17 . 20 . 1 . 24 7 . 24 38 . 1 . . Successful 63 | . 12 . 12 . 1 . 12 1 . 10 14 . 1 . . Failed 69 | . 5 . 8 . . . 12 6 . 14 24 . . . . Catastrophic 15 | . 1 . . . . . 2 . . 7 5 . . . . Database Lockouts . | . . . . . . . . . . . . . . . . Manual 81 | . 11 . 11 . 1 . 17 7 . 14 15 . . 5 . Terminals 100 | . 13 . 19 . . . 22 7 . 19 20 . . . . Fabricators 3 | . . . . . . . . . . . 3 . . . . Repair Stations 2 | . . . . . . . 2 . . . . . . . . Recycling Units 11 | . 4 . 1 . . . . . . . 6 . . . . Scanalyzers 2 | . . . . . . . . . . . 2 . . . . Garrison Access 12 | . . . . . . . . . . 5 7 . . . . Terminal Hacks 20 | . 3 . 5 . 1 . 3 . . 3 4 . 1 . . Part Schematic 1 | . . . . . . . . . . . 1 . . . . Robot Analysis 1 | . 1 . . . . . . . . . . . . . . Open Door 1 | . . . . . . . . . . . . . 1 . . Branch Access Points 1 | . . . . . . . . . . . 1 . . . . Emergency Access Points 1 | . . . 1 . . . . . . . . . . . . Alert Level 1 | . . . . . . . . . . . 1 . . . . Unreport Threat 5 | . . . 1 . . . 1 . . 2 1 . . . . Locate Traps 2 | . . . 2 . . . . . . . . . . . . Recall Reinforcements 1 | . . . . . . . . . . 1 . . . . . Zone Layout 5 | . 2 . 1 . . . 2 . . . . . . . . Derelict Proto ID Bank 1 | . . . . . 1 . . . . . . . . . . Fabricator Hacks 1 | . . . . . . . . . . . 1 . . . . Load Schematic 1 | . . . . . . . . . . . 1 . . . . Repair Station Hacks 2 | . . . . . . . 2 . . . . . . . . Scan Component 1 | . . . . . . . 1 . . . . . . . . Repair 1 | . . . . . . . 1 . . . . . . . . Recycling Unit Hacks 3 | . 1 . . . . . . . . . 2 . . . . Retrieve Components 3 | . 1 . . . . . . . . . 2 . . . . Scanalyzer 1 | . . . . . . . . . . . 1 . . . . Insert Component 1 | . . . . . . . . . . . 1 . . . . Garrison Access Hacks 3 | . . . . . . . . . . 2 1 . . . . Seal Access 3 | . . . . . . . . . . 2 1 . . . . Unauthorized Hacks 33 | . 8 . 7 . . . 7 1 . 5 5 . . . . Terminals 30 | . 6 . 6 . . . 7 1 . 5 5 . . . . Botnet 2 | . 1 . 1 . . . . . . . . . . . . Skim 28 | . 5 . 5 . . . 7 1 . 5 5 . . . . Fabricators . | . . . . . . . . . . . . . . . . Repair Stations . | . . . . . . . . . . . . . . . . Recycling Units 3 | . 2 . 1 . . . . . . . . . . . . Tunnel 3 | . 2 . 1 . . . . . . . . . . . . Scanalyzers . | . . . . . . . . . . . . . . . . Garrison Access . | . . . . . . . . . . . . . . . . Data Cores Recovered . | . . . . . . . . . . . . . . . . Used . | . . . . . . . . . . . . . . . . Hacking Detections 46 | . 5 . 7 . . . 7 3 . 10 14 . . . . Full Trace Events 4 | . . . . . . . 1 . . . 3 . . . . Feedback Events . | . . . . . . . . . . . . . . . . Feedback Blocked . | . . . . . . . . . . . . . . . . Robot Schematics Acquired 3 | . . . . . . . . . . . . . . 3 . Robots Built . | . . . . . . . . . . . . . . . . Authchips . | . . . . . . . . . . . . . . . . Time . | . . . . . . . . . . . . . . . . Total Robot Build Rating . | . . . . . . . . . . . . . . . . Part Schematics Acquired 17 | . . . . . . . . . . . 1 . . 16 . Parts Built . | . . . . . . . . . . . . . . . . Authchips . | . . . . . . . . . . . . . . . . Time . | . . . . . . . . . . . . . . . . Total Part Build Rating . | . . . . . . . . . . . . . . . . Parts Repaired 1 | . . . . . . . 1 . . . . . . . . Time 38 | . . . . . . . 38 . . . . . . . . Parts Recycled . | . . . . . . . . . . . . . . . . Recycled Matter . | . . . . . . . . . . . . . . . . Retrieved Matter . | . . . . . . . . . . . . . . . . Retrieved Components 22 | . 9 . . . . . . . . . 13 . . . . Parts Scanalyzed . | . . . . . . . . . . . . . . . . Part Schematics Acquired . | . . . . . . . . . . . . . . . . Parts Damaged . | . . . . . . . . . . . . . . . . Bothacking | -11 -10 -10 -9 -9 -9 -8 -8 -7 -7 -7 -6 -6 -6 -6 -6 ------------ Run | Yrd Mat Min Mat Min Exi Min Mat Fac Was Fac Fac Low Low Zio Dee Used RIF Installer . | . . . . . . . . . . . . . . . . Robots Hacked . | . . . . . . . . . . . . . . . . Non-combat . | . . . . . . . . . . . . . . . . Combat . | . . . . . . . . . . . . . . . . Robot Hacks Applied . | . . . . . . . . . . . . . . . . Relay Couplers Released . | . . . . . . . . . . . . . . . . Fabnet Peak Effective % . | . . . . . . . . . . . . . . . . Robots Rewired . | . . . . . . . . . . . . . . . . Allies Hacked . | . . . . . . . . . . . . . . . . Hacks Repelled . | . . . . . . . . . . . . . . . . Allies | -11 -10 -10 -9 -9 -9 -8 -8 -7 -7 -7 -6 -6 -6 -6 -6 -------- Run | Yrd Mat Min Mat Min Exi Min Mat Fac Was Fac Fac Low Low Zio Dee Total Allies 24 | . . . . 1 . . . . 20 . 3 . . . . Largest Group 20 | . . . . 1 1 . . . 20 20 3 . . . . Highest-Rated Group 502 | . . . . 31 31 . . . 502 502 93 . . . . Highest-Rated Ally 35 | . . . . 31 31 . . . 35 35 31 . . . . Total Orders . | . . . . . . . . . . . . . . . . Ally Attacks 230 | . . . . . . . . . . 230 . . . . . Total Damage 3131 | . . . . . . . . . . 3131 . . . . . Kills 23 | . . . . . . . . . . 23 . . . . . Allies Corrupted 1 | . . . . . . . . . . . 1 . . . . Allies Melted . | . . . . . . . . . . . . . . . . Intel | -11 -10 -10 -9 -9 -9 -8 -8 -7 -7 -7 -6 -6 -6 -6 -6 ------- Run | Yrd Mat Min Mat Min Exi Min Mat Fac Was Fac Fac Low Low Zio Dee Robot Analysis Total 1 | . 1 . . . . . . . . . . . . . . Derelict Logs Recovered 5 | . . 2 . 1 . . . . . . . . 1 1 . Drone Launches . | . . . . . . . . . . . . . . . . Drone Recoveries . | . . . . . . . . . . . . . . . . Exploration | -11 -10 -10 -9 -9 -9 -8 -8 -7 -7 -7 -6 -6 -6 -6 -6 ------------- Run | Yrd Mat Min Mat Min Exi Min Mat Fac Was Fac Fac Low Low Zio Dee Turns Passed 27070 | 120 1368 1197 1573 703 336 178 3204 1047 312 1533 3624 650 1110 8178 1937 Spaces Moved 13957 | 59 561 558 709 318 209 73 896 662 239 1095 1993 361 674 4675 875 Core 1257 | 3 . . . . . . 5 . . . . . . 1249 . Treads 3892 | 56 561 558 709 318 209 73 410 . . . . . . 998 . Legs 1756 | . . . . . . . 481 28 . . . . . 372 875 Wheels 6938 | . . . . . . . . 634 239 1095 1993 361 674 1942 . Hover . | . . . . . . . . . . . . . . . . Flight 114 | . . . . . . . . . . . . . . 114 . Fastest Speed 45 | 50 160 160 160 160 160 160 160 115 115 130 130 160 160 45 45 Average Speed 164 | 154 160 200 174 207 160 179 282 129 127 130 168 160 160 148 158 Slowest Speed 750 | 160 160 240 240 240 160 240 750 340 130 130 175 160 160 460 240 Overloaded Moves 24 | . . . . . . . . . . . . . . 10 14 Propulsion Burnouts . | . . . . . . . . . . . . . . . . Robots Hopped . | . . . . . . . . . . . . . . . . Cave-ins Triggered . | . . . . . . . . . . . . . . . . Exploration Rate (%) 59 | 5 97 97 74 74 61 27 66 23 82 30 38 45 73 89 76 Regions Visited 15 Branch Regions 8 Pre-discovered Areas 17 | . 4 2 3 . . . 3 . . 1 2 . . 2 . Known Exits Taken 7 | . . 1 1 . . 1 1 . . 1 1 1 . . . Unknown Exits Taken 6 | 1 1 . . 1 1 . . . . . . . 1 1 . Scrap Searched 14 | . . 2 . 1 . . . . . . . 5 4 2 . Spaces Dug 54 | . . . 6 . . . 8 12 . 1 8 1 . 4 14 Terrain Destroyed 468 | . 3 12 92 25 . . 66 12 . 1 123 1 62 15 56 Melee 27 | . . . 6 . . . 3 12 . 1 1 . . 4 . Projectile 57 | . . . . . . . 25 . . . 20 1 . 11 . AOE 384 | . 3 12 86 25 . . 38 . . . 102 . 62 . 56 Terrain Rammed . | . . . . . . . . . . . . . . . . Walls Destroyed . | . . . . . . . . . . . . . . . . Machines Disabled . | . . . . . . . . . . . . . . . . Actions | -11 -10 -10 -9 -9 -9 -8 -8 -7 -7 -7 -6 -6 -6 -6 -6 --------- Run | Yrd Mat Min Mat Min Exi Min Mat Fac Was Fac Fac Low Low Zio Dee Total 17125 | 74 972 592 929 343 212 96 1401 760 248 1186 2193 423 692 5631 1373 Wait 2028 | 2 358 . 73 6 . 8 351 23 . 57 79 45 . 617 409 Move 13943 | 58 560 557 708 317 208 72 895 662 238 1094 1992 360 673 4674 875 Hop . | . . . . . . . . . . . . . . . . Pick Up 120 | 1 8 2 14 1 2 . 14 4 1 5 19 5 2 39 3 Fast Attach 65 | 7 . 2 2 . . . 10 4 . . 3 . . 35 2 Attach 46 | . 2 2 4 . . 1 2 4 . . 3 4 . 15 9 Detach 24 | . 1 . . . . . 2 1 . . 2 . . 8 10 Swap 112 | 1 7 4 27 3 . . 18 7 3 10 18 2 2 8 2 Drop 137 | . 4 . 25 3 2 . 19 8 3 9 17 1 4 35 7 Fire 497 | 5 31 24 64 12 . 13 83 7 . 9 42 5 11 165 26 Melee 101 | . . . 11 . . . 3 38 . 1 1 . . 35 12 Ram 4 | . . . . . . . . 1 . 1 1 1 . . . Kick 8 | . . . . . . . 4 1 . . . . . . 3 Crush 6 | . 1 1 1 1 . 2 . . . . . . . . . Escape Stasis 16 | . . . . . . . . . . . 16 . . . . Rewire 18 | . . . . . . . . . 3 . . . . . 15 Trap . | . . . . . . . . . . . . . . . . Miscellaneous . | . . . . . . . . . . . . . . . . Route ------- -11/Scrapyard -10/Materials (discovered 6 exits: *Mat x3 / [*Min x2] / Sub) -10/Mines (discovered 2 exits: *Mat x2) -9/Materials (discovered 5 exits: *Mat x3 / *Min x2) -9/Mines (discovered 3 exits: *Mat x2 / *Exi) -9/Exiles -8/Mines -8/Materials (discovered 3 exits: *Fac x3) -7/Factory (discovered 3 exits: Fac x2 / Sto) -7/Waste -7/Factory (discovered 4 exits: *Fac x4) -6/Factory (discovered 6 exits: *Fac x4 / *Low x2) -6/Lower Caves -6/Lower Caves (discovered 2 exits: *Fac / *Zio) -6/Zion (discovered 2 exits: [*Dee] / [*Pro]) -6/Deep Caves (discovered 1 exit: [*Pro]) History --------- Turn | Location | Event 36 | -11/Scrapyard | Discovered new exit (range 15) 121 | -11/Scrapyard | Entered Materials 256 | -10/Materials | Discovered new exit (range 9) 312 | -10/Materials | Build established: Mutant 365 | -10/Materials | Discovered new exit (range 14) 621 | -10/Materials | Derelicts attacked the area 714 | -10/Materials | Discovered new exit (range 14) 843 | -10/Materials | Discovered new exit (range 16) 1012 | -10/Materials | Discovered new exit (range 14) 1109 | -10/Materials | Loaded intel: 11 trap records 1220 | -10/Materials | Learned location of 1 exit from Recycling 1259 | -10/Materials | Identified exit to Subcaves 1307 | -10/Materials | Learned 2 Mines zone layouts 1317 | -10/Materials | Learned Materials trap positions 1373 | -10/Materials | Loaded intel: 30 non-interactive machine locations 1489 | -10/Materials | Entered Mines 1490 | -10/Mines | Identified exit to Materials 1580 | -10/Mines | Learned location of Storage (-7) 1593 | -10/Mines | Core integrity fell below 50% 1811 | -10/Mines | Discovered exit to Materials (range 8) 2204 | -10/Mines | Joined a pair of Derelicts in attacking an 0b10 outpost 2470 | -10/Mines | Learned Materials security intel 2530 | -10/Mines | Build established: Scavenger-Mutant 2686 | -10/Mines | Entered Materials 2686 | -9/Materials | Evolved 2 slots: Utility x2 2687 | -9/Materials | Loaded intel: 34 trap records 2932 | -9/Materials | Discovered new exit (range 15) 3160 | -9/Materials | Discovered new exit (range 6) 3447 | -9/Materials | Discovered new exit (range 15) 3584 | -9/Materials | Discovered new exit (range 16) 3612 | -9/Materials | Learned Storage trap positions 3654 | -9/Materials | Identified exit to Materials 3654 | -9/Materials | Identified exit to Mines 3686 | -9/Materials | Learned 4 Materials zone layouts 3702 | -9/Materials | Build established: Mutant 3706 | -9/Materials | Learned 2 Storage zone layouts 3717 | -9/Materials | Learned location of 1 exit from Materials 3739 | -9/Materials | Learned location of Zion (-6) 3771 | -9/Materials | Learned Materials trap positions 4259 | -9/Materials | Entered Mines 4446 | -9/Mines | Learned Materials terminal intel 4514 | -9/Mines | Received a Rocket Launcher from a helpful Derelict 4630 | -9/Mines | Discovered exit to Materials (range 8) 4856 | -9/Mines | Discovered exit to Materials (range 10) 4862 | -9/Mines | Received a Mining Laser from a helpful Derelict 4864 | -9/Mines | Found a damaged Exp. Sensor Array with a note attached 4868 | -9/Mines | Found Prototype Device 4952 | -9/Mines | Deemed a non-threat by the Exiles lab entrance 4953 | -9/Mines | Discovered new exit (range 5) 4962 | -9/Mines | Entered Exiles 4962 | -9/Exiles | Accompanied by 1 ally 5002 | -9/Exiles | Met 8R-AWN 5028 | -9/Exiles | Met EX-HEX 5071 | -9/Exiles | Met EX-BIN 5090 | -9/Exiles | Aligned with FarCom system 5092 | -9/Exiles | Given EX-Vault access code 5129 | -9/Exiles | Opened EX-Vault 5138 | -9/Exiles | Found Potential Leg 5140 | -9/Exiles | Found Potential Leg 5177 | -9/Exiles | Warned to stay clear of 0b10 Research branches 5197 | -9/Exiles | Exiles lab attacked by MAIN.C 5285 | -9/Exiles | Discovered new exit (range 10) 5298 | -9/Exiles | Left Exiles lab with Potential Leg 5298 | -9/Exiles | Entered Mines 5452 | -8/Mines | Discovered exit to Materials (range 8) 5476 | -8/Mines | Entered Materials 5476 | -8/Materials | Evolved 2 slots: Utility x1, Weapon x1 5477 | -8/Materials | Identified exit to Factory 5479 | -8/Materials | Loaded intel: 20 trap records 5480 | -8/Materials | Loaded intel: 12 terminal locations 6360 | -8/Materials | Discovered exit to Factory (range 5) 6484 | -8/Materials | Build established: Skirmisher 7090 | -8/Materials | Repaired Hvy. Assault Cannon 8324 | -8/Materials | Learned 2 Lower Caves zone layouts 8384 | -8/Materials | Learned Storage emergency access door positions 8407 | -8/Materials | Learned location of Lower Caves (-6) 8409 | -8/Materials | Learned Storage stockpile data 8431 | -8/Materials | Learned location of Lower Caves (-6) 8456 | -8/Materials | Build established: Gunner 8680 | -8/Materials | Entered Factory 8680 | -7/Factory | Evolved 2 slots: Power x1, Utility x1 8681 | -7/Factory | Identified exit to Factory 8681 | -7/Factory | Identified exit to Storage 9200 | -7/Factory | Build established: Mutant 9476 | -7/Factory | Cargo convoy interrupted 9727 | -7/Factory | Sucked down chute 9727 | -7/Factory | Entered Waste 9728 | -7/Waste | Joined by Warlord forces that had cleared the area 9845 | -7/Waste | Discovered new exit (range 15) 10039 | -7/Waste | Entered Factory 10039 | -7/Factory | Accompanied by 20 allies 10606 | -7/Factory | Garrison activated, responded to threat 10667 | -7/Factory | Lost 3 allies 10707 | -7/Factory | Discovered exit to Factory (range 16) 10822 | -7/Factory | Learned location of 1 exit from Cetus 11015 | -7/Factory | Learned location of Upper Caves (-5) 11061 | -7/Factory | Learned Hub_04(d) stockpile data 11439 | -7/Factory | Lost 12 allies 11465 | -7/Factory | P-60 Hacker assimilated allied HD-03T(g) 11572 | -7/Factory | Entered another Factory area 11572 | -6/Factory | Evolved 2 slots: Utility x2 11573 | -6/Factory | Identified exit to Factory 11573 | -6/Factory | Identified exit to Lower Caves 11912 | -6/Factory | Allied Derelicts emerged from ambush trap array 12213 | -6/Factory | Lost 3 allies 12372 | -6/Factory | Discovered exit to Factory (range 16) 12690 | -6/Factory | Build established: Gunner 13027 | -6/Factory | Discovered exit to Factory (range 6) 13081 | -6/Factory | Build established: Tank 13493 | -6/Factory | Learned location of 2 exits from Factory 13559 | -6/Factory | Learned Hub_04(d) trap positions 13658 | -6/Factory | Learned Hub_04(d) emergency access door positions 13717 | -6/Factory | Learned Extension stockpile data 13732 | -6/Factory | Learned 2 Upper Caves zone layouts 13757 | -6/Factory | Learned 4 Lower Caves zone layouts 13836 | -6/Factory | Learned location of Upper Caves (-5) 13888 | -6/Factory | Learned Extension interactive machine intel 15153 | -6/Factory | Spotted B-75 Beast 15196 | -6/Factory | Entered Lower Caves 15197 | -6/Lower Caves | Identified exit to Lower Caves 15274 | -6/Lower Caves | Attracted the attention of an 0b10 checkpoint 15293 | -6/Lower Caves | Identified Exp. Sensor Array 15673 | -6/Lower Caves | Build established: Gunner 15846 | -6/Lower Caves | Entered another Lower Caves area 15869 | -6/Lower Caves | Discovered exit to Factory (range 15) 16062 | -6/Lower Caves | Found Prototype Device 16815 | -6/Lower Caves | Discovered new exit (range 13) 16956 | -6/Lower Caves | Entered Zion 17035 | -6/Zion | System corruption cleaned by Quarantine Array 17080 | -6/Zion | Discovered new exit (range 9) 17273 | -6/Zion | Build established: Mutant 17572 | -6/Zion | Received a visual enhancement algorithm 18068 | -6/Zion | Found Prototype Device 18351 | -6/Zion | Found CR-A16's Pointy Stick 19389 | -6/Zion | Identified Heart of Steel 19439 | -6/Zion | Identified Phasing AFG 19955 | -6/Zion | Found Prototype Energy Gun 20034 | -6/Zion | Identified Storm Laser 21290 | -6/Zion | Build established: Derelict-Mutant 21779 | -6/Zion | Rebuked by Imprinter 21811 | -6/Zion | Murdered Imprinter 21812 | -6/Zion | Attacked by Zionites 21814 | -6/Zion | Extracted access codes from Imprinter's data core 21882 | -6/Zion | Lost 4 parts (2p2u) 23680 | -6/Zion | System corruption reached 10% 23710 | -6/Zion | Lost 4 parts (3u1w) 24004 | -6/Zion | Build established: Scavenger-Mutant 24585 | -6/Zion | Lost 4 parts (1p1u2w) 25096 | -6/Zion | Opened final containment barrier to the Deep Caves 25125 | -6/Zion | Discovered new exit (range 5) 25128 | -6/Zion | Saw the warning signs outside the Deep Caves entrance 25134 | -6/Zion | Entered Deep Caves 25310 | -6/Deep Caves | Z-Facility disabled 25757 | -6/Deep Caves | Discovered new exit (range 12) 26080 | -6/Deep Caves | Spotted AG-29172 26083 | -6/Deep Caves | Core integrity fell below 50% 26108 | -6/Deep Caves | Destroyed AG-29172 26160 | -6/Deep Caves | Spotted AG-27204 26220 | -6/Deep Caves | Destroyed AG-27204 26222 | -6/Deep Caves | Found GOLEM Unit 26249 | -6/Deep Caves | Lost 4 parts (1p3u) 26648 | -6/Deep Caves | Build established: Derelict-Golem 26718 | -6/Deep Caves | Found AWS/Thermal 26994 | -6/Deep Caves | Build established: Golem 27020 | -6/Deep Caves | Triggered Deep Caves wall 27023 | -6/Deep Caves | Exposed GOLEM chamber 27045 | -6/Deep Caves | Spotted AS-38224 27056 | -6/Deep Caves | Spotted AS-16598 27058 | -6/Deep Caves | Core integrity fell below 20% 27071 | -6/Deep Caves | Destroyed by as-72328 with Assembled P-torch Last Messages --------------- 27057_ Slug penetrates as-61677. 27058_ GOLEM Unit springs to life. 27059_ AG-66753 GOLEM Unit beginning Asb. Alloy Leg integration. 27059_ as-95318 destroyed. Lgt. Angular Momentum Engine ripped apart by quantum tension. 27061_ Penetrated by Slug. 27062_ Asb. Nanovents destroyed. 27063_ Penetrated by Slug. 27063_ Asb. Alloy Armor destroyed. 27064_ as-72328 released from Mobile Assembly Unit. 27064_ as-38831 released from Mobile Assembly Unit. 27064_ GOLEM Unit springs to life. 27065_ AG-54451 GOLEM Unit beginning Asb. Alloy Leg integration. 27065_ Critical hit (Burn: +80). 27065_ Penetrated by Slug. 27066_ Destroyed Unknown Special Weapon. 27067_ Penetrated by Slug. 27068_ 4U3VO2B<%TWCUT